{"text_format":"1","workbook":"xlsx","n_sheets":3,"sheets":["Бланк Методички","Обработка результатов","Печать"],"not_rendered":{"charts":0,"images":1,"macros":1,"external_links":0,"defined_names":0,"comments":0,"pivot_tables":0},"unopened":[],"bounds":{"document_bytes":16777216,"sheet_cells":100000,"rows_first":2000,"rows_last":500,"rows_between":2000,"halvings":0,"cell_chars":16384,"cell_head_chars":4096},"cells_cut":0,"cells_raw":0,"read":"whole","date_system":"1900"}

{"sheet":"Бланк Методички","index":0,"n_rows":50,"n_cols":34,"rows_kept":50,"cut":false,"hidden":false,"merged":[[2,10,2,11],[2,12,2,14],[47,1,47,13],[48,1,48,13],[49,1,49,13],[41,1,41,13],[42,1,42,13],[43,1,43,13],[44,1,44,13],[45,1,45,13],[27,1,27,13],[28,1,28,13],[29,1,29,13],[30,1,30,13],[31,1,31,13],[22,1,22,13],[23,1,23,13],[24,1,24,13],[25,1,25,13],[26,1,26,13],[17,1,17,13],[18,1,18,13],[19,1,19,13],[20,1,20,13],[21,1,21,13],[32,1,32,13],[33,1,33,13],[34,1,34,13],[35,1,35,13],[36,1,36,13],[37,1,37,13],[38,1,38,13],[39,1,39,13],[40,1,40,13],[46,1,46,13],[14,1,14,13],[15,1,15,13],[16,1,16,13],[2,15,2,18],[1,10,1,11],[1,12,1,14],[1,0,1,2],[1,3,1,8],[2,0,2,2],[2,3,2,8],[4,0,7,14],[10,1,10,13],[11,1,11,13],[12,1,12,13],[13,1,13,13]]}
[null,null,null,null,null,null,null,null,null,null,null,null,null,null,null,null,null,null,null,null,null,null,null,null,null,null,null,null,null,null,null,null,10,"5 А"]
["Фамилия, имя",null,null,null,null,null,null,null,null,null,"Класс",null,null,null,null,null,null,null,null,null,null,"Мальчик",null,null,null,null,null,null,null,null,null,null,11,"5 Б"]
["Возраст",null,null,null,null,null,null,null,null,null,"Пол",null,null,null,null,null,null,null,null,null,null,"Девочка",null,null,null,null,null,null,null,null,null,null,12,"5 В"]
[null,null,null,null,null,null,null,null,null,null,null,null,null,null,null,null,null,null,null,null,null,null,null,null,null,null,null,null,null,null,null,null,13]
["Если вы согласны с утверждением (то есть это подходит для описания вашего поведения или состояния), то поставьте «+» в клеточку рядом с номером утверждения. Если не согласны, то ничего ставить не надо.\nЕсли согласны с высказыванием, в бланке поставьте «+», если нет «–». ",null,null,null,null,null,null,null,null,null,null,null,null,null,null,null,null,null,null,null,null,null,null,null,null,null,null,null,null,null,null,"Мальчик",14]
[null,null,null,null,null,null,null,null,null,null,null,null,null,null,null,null,null,null,null,null,null,null,null,null,null,null,null,null,null,null,null,"Девочка",15]
[null,null,null,null,null,null,null,null,null,null,null,null,null,null,null,null,null,null,null,null,null,null,null,null,null,null,null,null,null,null,null,null,16]
[]
[]
[]
[1,"Во время спора я часто повышаю голос.",null,null,null,null,null,null,null,null,null,null,null,null,null,null,null,null,null,"+"]
[2,"Если мне необходимо будет прибегнуть к физической силе для защиты своих прав, я сделаю это, не раздумывая.",null,null,null,null,null,null,null,null,null,null,null,null,null,null,null,null,null,"-"]
[3,"Увлекшись спором с другим человеком, я могу стукнуть кулаком по столу, чтобы привлечь к себе внимание или доказать свою правоту."]
[4,"Я постоянно чувствую, что другие не уважают мои права."]
[5,"Когда я вспоминаю прошлое, порой мне бывает обидно за себя."]
[6,"Если меня кто-то раздражает, я могу сказать ему все, что о нем думаю."]
[7,"Когда я встречаю неприятного мне человека, я могу позволить себе незаметно ущипнуть или толкнуть его."]
[8,"Я иногда бываю настолько взбешен, что швыряю разные предметы."]
[9,"В общении с людьми я часто чувствую себя «пороховой бочкой», которая постоянно готова взорваться."]
[10,"Хотя я и не подаю вида, иногда меня гложет зависть."]
[11,"Если я не одобряю поведение своих знакомых, то я прямо говорю им об этом."]
[12,"Если кто-нибудь поднимет на меня руку, я постараюсь ударить его первым."]
[13,"Я могу от злости порвать тетрадку или бросить книжку."]
[14,"Порой у меня появляется желание зло пошутить над другим человеком."]
[15,"Когда я сердит, то обычно мрачнею и не хочу ни с кем общаться. "]
[16,"В сильном гневе я употребляю крепкие выражения, сквернословлю."]
[17,"У меня часто «чешутся кулаки», и я всегда готов пустить их в ход."]
[18,"Я помню, что бывал настолько сердитым, что хватал все, что попадало под руку, и ломал."]
[19,"Иногда люди раздражают меня только одним своим присутствием."]
[20,"Если мне нанесут обиду, у меня пропадет желание разговаривать."]
[21,"Иногда я намеренно говорю гадости о человеке, которого не люблю."]
[22,"Если я знаю, что человек намеренно меня толкнул, то дело может дойти до драки."]
[23,"Когда я взбешен, то могу хлопнуть дверью."]
[24,"Мне кажется, что окружающие люди меня не любят."]
[25,"Очень часто своими словами и действиями я сам себе приношу вред."]
[26,"Когда я взбешен, я кричу самое злобное ругательство."]
[27,"Я знаю, по какой причине и когда можно кого-нибудь ударить."]
[28,"Меня раздражает, когда предметы лежат не на своем месте."]
[29,"Другие люди мне всегда кажутся более счастливыми и везучими."]
[30,"Мне кажется, что я сам виноват в своих проблемах."]
[31,"Когда люди орут на меня, я отвечаю тем же."]
[32,"Когда я думаю об очень неприятном мне человеке, у меня появляется желание причинить ему зло."]
[33,"Иногда меня злят улыбающиеся и веселые люди."]
[34,"Я думаю, что люди совершают хорошие поступки, потому что им это выгодно."]
[35,"Если кто-нибудь обращается со мной не так, как следует, я очень расстраиваюсь по этому поводу."]
[36,"В разговоре с человеком я обычно его перебиваю."]
[37,"В детстве я часто дрался."]
[38,"На моем столе всегда беспорядок."]
[39,"Я не верю людям, которые делают для меня хорошее."]
[40,"Я не могу поделиться с другими своими чувствами и переживаниями."]

{"sheet":"Обработка результатов","index":1,"n_rows":22,"n_cols":49,"rows_kept":22,"cut":false,"hidden":true,"merged":[[16,2,18,13],[1,1,1,8],[9,1,9,8],[14,10,14,13],[8,0,8,13],[2,10,2,11],[2,12,2,17],[9,10,9,13],[3,10,3,11],[3,12,3,17],[10,10,10,13],[11,10,11,13],[12,10,12,13],[13,10,13,13]]}
[]
["Шкала","Пункты, номер"]
["Вербальная агрессия ",1,6,11,16,21,26,31,36,null,"Ф.И.О.",null,{"$f":"PROPER('Бланк Методички'!D2)","v":""}]
["Физическая агрессия ",2,7,12,17,22,27,32,37,null,"Класс",null,{"$f":"'Бланк Методички'!M2","v":0}]
["Косвенная агрессия ",3,8,13,18,23,28,33,38]
["Эмоциональная агрессия ",4,9,14,19,24,29,34,39]
["Самоагрессия",5,10,15,20,25,30,35,40]
[]
["Результаты"]
["Шкала","Ответы",null,null,null,null,null,null,null,"Итого","Уровень",null,null,null,null,null,null,null,null,null,null,null,null,null,null,null,null,null,null,null,null,null,null,null,null,null,null,null,null,null,null,null,null,null,null,{"$f":"'Бланк Методички'!O24","v":0},{"$f":"'Бланк Методички'!O40","v":0},{"$f":"'Бланк Методички'!O48","v":0}]
[{"$f":"A3","v":"Вербальная агрессия "},{"$f":"'Бланк Методички'!O11","v":0},{"$f":"'Бланк Методички'!O16","v":0},{"$f":"'Бланк Методички'!O21","v":0},{"$f":"'Бланк Методички'!O26","v":0},{"$f":"'Бланк Методички'!O32","v":0},{"$f":"'Бланк Методички'!O36","v":0},{"$f":"'Бланк Методички'!O41","v":0},{"$f":"'Бланк Методички'!O46","v":0},{"$f":"COUNTIF(B11:I11,\"+\")","v":0},{"$f":"IF(AND(J11>=0,J11<=2),\"Низкий\",IF(AND(J11>=3,J11<=4),\"Средний\",IF(J11>=5,\"Высокий\",)))","v":"Низкий"},null,null,null,null,null,null,null,null,null,null,null,null,null,null,null,null,null,null,null,null,null,null,null,null,null,null,null,null,null,null,null,null,null,null,{"$f":"'Бланк Методички'!O14","v":0},{"$f":"'Бланк Методички'!O30","v":0},{"$f":"'Бланк Методички'!O42","v":0}]
[{"$f":"A4","v":"Физическая агрессия "},{"$f":"'Бланк Методички'!O12","v":0},{"$f":"'Бланк Методички'!O17","v":0},{"$f":"'Бланк Методички'!O22","v":0},{"$f":"'Бланк Методички'!O27","v":0},{"$f":"'Бланк Методички'!O33","v":0},{"$f":"'Бланк Методички'!O37","v":0},{"$f":"'Бланк Методички'!O42","v":0},{"$f":"'Бланк Методички'!O47","v":0},{"$f":"COUNTIF(B12:I12,\"+\")","v":0},{"$f":"IF(AND(J12>=0,J12<=2),\"Низкий\",IF(AND(J12>=3,J12<=4),\"Средний\",IF(J12>=5,\"Высокий\",)))","v":"Низкий"},null,null,null,null,null,null,null,null,null,null,null,null,null,null,null,null,null,null,null,null,null,null,null,null,null,null,null,null,null,null,null,null,null,null,{"$f":"'Бланк Методички'!O11","v":0},{"$f":"'Бланк Методички'!O19","v":0},{"$f":"'Бланк Методички'!O35","v":0},{"$f":"'Бланк Методички'!O43","v":0}]
["Косвенная агрессия ",{"$f":"'Бланк Методички'!O13","v":0},{"$f":"'Бланк Методички'!O18","v":0},{"$f":"'Бланк Методички'!O23","v":0},{"$f":"'Бланк Методички'!O28","v":0},{"$f":"'Бланк Методички'!O34","v":0},{"$f":"'Бланк Методички'!O38","v":0},{"$f":"'Бланк Методички'!O43","v":0},{"$f":"'Бланк Методички'!O48","v":0},{"$f":"COUNTIF(B13:I13,\"+\")","v":0},"Низкий"]
["Эмоциональная агрессия ",{"$f":"'Бланк Методички'!O14","v":0},{"$f":"'Бланк Методички'!O19","v":0},{"$f":"'Бланк Методички'!O24","v":0},{"$f":"'Бланк Методички'!O29","v":0},{"$f":"'Бланк Методички'!O35","v":0},{"$f":"'Бланк Методички'!O39","v":0},{"$f":"'Бланк Методички'!O44","v":0},{"$f":"'Бланк Методички'!O49","v":0},{"$f":"COUNTIF(B14:I14,\"+\")","v":0},"Низкий"]
["Самоагрессия",{"$f":"'Бланк Методички'!O15","v":0},{"$f":"'Бланк Методички'!O20","v":0},{"$f":"'Бланк Методички'!O25","v":0},{"$f":"'Бланк Методички'!O30","v":0},{"$f":"'Бланк Методички'!O36","v":0},{"$f":"'Бланк Методички'!O40","v":0},{"$f":"'Бланк Методички'!O45","v":0},{"$f":"'Бланк Методички'!O50","v":0},{"$f":"COUNTIF(B15:I15,\"+\")","v":0},"Низкий"]
[]
["Сумма баллов",{"$f":"SUM(J11:J15)","v":0},{"$f":"IF(AND(B17>=0,B17<=10),B22,IF(AND(B17>=11,B17<=24),B21,IF(B17>=25,B20,)))","v":"Низкая степень агрессивности и высокую степень адаптированного поведения."}]
[]
[]
[null,"Высокая степень агрессивности человека, низкие адаптационные возможности."]
[null,"Средний уровень агрессивности и адаптированности."]
[null,"Низкая степень агрессивности и высокую степень адаптированного поведения."]

{"sheet":"Печать","index":2,"n_rows":40,"n_cols":8,"rows_kept":40,"cut":false,"hidden":false,"merged":[[5,0,5,4],[6,0,6,4],[3,1,3,2],[3,4,3,5],[6,6,6,8],[7,6,7,8],[8,6,8,8],[9,6,9,8],[5,6,5,8],[0,0,0,8],[2,7,2,8],[3,7,3,8],[2,1,2,5],[7,0,7,4],[8,0,8,4],[30,0,30,8],[36,0,36,8],[31,0,31,8],[32,0,32,8],[33,0,33,8],[34,0,34,8],[35,0,35,8],[16,0,16,8],[9,0,9,4],[12,0,12,4],[12,5,12,8],[13,0,15,8],[39,5,39,8],[10,0,10,4],[10,6,10,8],[27,0,27,8],[28,0,28,8],[29,0,29,8],[22,0,22,8],[23,0,23,8],[24,0,24,8],[25,0,25,8],[26,0,26,8],[17,0,17,8],[18,0,18,8],[19,0,19,8],[20,0,20,8],[21,0,21,8]]}
["Тест агрессивности (опросник Л.Г. Почебут)"]
[]
["ФИО",{"$f":"PROPER('Бланк Методички'!D2)","v":""},null,null,null,null,"Класс",{"$f":"'Бланк Методички'!M2","v":0}]
["Возраст",{"$f":"CONCATENATE('Бланк Методички'!D3, \" лет\")","v":" лет"},null,{"$f":"'Бланк Методички'!K3","v":"Пол"},{"$f":"'Бланк Методички'!M3","v":0},null,"Дата",{"$f":"TODAY()","v":"2019-03-01"}]
[]
["Шкала",null,null,null,null,"Баллы","Уровень"]
[{"$f":"'Обработка результатов'!A3","v":"Вербальная агрессия "},null,null,null,null,{"$f":"'Обработка результатов'!J11","v":0},{"$f":"'Обработка результатов'!K11","v":"Низкий"}]
[{"$f":"'Обработка результатов'!A4","v":"Физическая агрессия "},null,null,null,null,{"$f":"'Обработка результатов'!J12","v":0},{"$f":"'Обработка результатов'!K12","v":"Низкий"}]
[{"$f":"'Обработка результатов'!A5","v":"Косвенная агрессия "},null,null,null,null,{"$f":"'Обработка результатов'!J13","v":0},{"$f":"'Обработка результатов'!K13","v":"Низкий"}]
[{"$f":"'Обработка результатов'!A6","v":"Эмоциональная агрессия "},null,null,null,null,{"$f":"'Обработка результатов'!J14","v":0},{"$f":"'Обработка результатов'!K14","v":"Низкий"}]
[{"$f":"'Обработка результатов'!A7","v":"Самоагрессия"},null,null,null,null,{"$f":"'Обработка результатов'!J15","v":0},{"$f":"'Обработка результатов'!K15","v":"Низкий"}]
[]
["Сумма баллов ",null,null,null,null,{"$f":"'Обработка результатов'!B17","v":0}]
[{"$f":"'Обработка результатов'!C17","v":"Низкая степень агрессивности и высокую степень адаптированного поведения."}]
[]
[]
[]
[]
[]
[]
[]
[]
[]
[]
[]
[]
[]
[]
[]
[]
[]
[]
[]
[]
[]
[]
[]
[]
[]
[null,null,null,null,null,"http://eschool.by/courses/psy"]